fUST/lending_fUST_20250704
["ID","MTS","AMOUNT","RATE_DAILY","PERIOD"]
[369472874,1751589039455,-460.0,0.00016438,2]
[369472875,1751589039464,-552.73,0.00016438,2]
[369472876,1751589039473,-460.0,0.00016438,2]
[369472877,1751589039483,-461.16733261,0.00016438,2]
[369472878,1751589039492,-460.0,0.00016438,2]
[369472879,1751589039502,-460.0,0.00016438,2]
[369472880,1751589039512,-698.96,0.00016438,2]
[369472881,1751589039521,-1015.65,0.00016438,2]
[369472882,1751589039530,-460.0,0.00016438,2]
[369472883,1751589039539,-460.0,0.00016438,2]
[369472884,1751589039549,-460.0,0.00016438,2]
[369472885,1751589039559,-460.0,0.00016438,2]
[369472886,1751589039568,-500.0,0.00016438,2]
[369472887,1751589039578,-460.0,0.00016438,2]
[369472888,1751589039588,-2259.47,0.00016438,2]
[369472889,1751589039598,-460.0,0.00016438,2]
[369472890,1751589039607,-151.0,0.00016438,2]
[369472891,1751589039617,-460.0,0.00016438,2]
[369472892,1751589039629,-463.79279247,0.00016438,2]
[369472893,1751589039638,-500.0,0.00016438,2]
[369472894,1751589039647,-460.0,0.00016438,2]
[369472895,1751589039657,-460.0,0.00016438,2]
[369472896,1751589039669,-168.90070263,0.00016438,2]
[369472897,1751589039680,-460.0,0.00016438,2]
[369472898,1751589039691,-500.0,0.00016438,2]
[369472899,1751589039700,-460.0,0.00016438,2]
[369472900,1751589039710,-436.7836657,0.00016438,2]
[369472901,1751589039719,-460.0,0.00016438,2]
[369472902,1751589039729,-460.0,0.00016438,2]
[369472903,1751589039740,-460.0,0.00016438,2]
[369472904,1751589039750,-460.0,0.00016438,2]
[369472905,1751589039759,-460.0,0.00016438,2]
[369472906,1751589039770,-460.0,0.00016438,2]
[369472907,1751589039780,-151.0,0.00016438,2]
[369472908,1751589039789,-460.0,0.00016438,2]
[369472909,1751589039799,-151.0,0.00016438,2]
[369472910,1751589039808,-953.35,0.00016438,2]
[369472911,1751589039817,-460.0,0.00016438,2]
[369472912,1751589039827,-460.0,0.00016438,2]
[369472913,1751589039837,-460.0,0.00016438,2]
[369472914,1751589039846,-460.0,0.00016438,2]
[369472915,1751589039855,-560.78,0.00016438,2]
[369472916,1751589039865,-460.0,0.00016438,2]
[369472917,1751589039875,-460.0,0.00016438,2]
[369472918,1751589039884,-460.0,0.00016438,2]
[369472920,1751589039894,-1670.95,0.00016438,2]
[369472922,1751589039903,-460.0,0.00016438,2]
[369472924,1751589039912,-504.38764687,0.00016438,2]
[369472926,1751589039921,-460.0,0.00016438,2]
[369472928,1751589039931,-460.0,0.00016438,2]
[369472929,1751589039942,-460.0,0.00016438,2]
[369472932,1751589039953,-734.67,0.00016438,2]
[369472948,1751589040088,-460.0,0.00016438,2]
[369472950,1751589040098,-462.6983466,0.00016438,2]
[369472952,1751589040108,-460.0,0.00016438,2]
[369472954,1751589040117,-460.0,0.00016438,2]
[369472956,1751589040126,-460.0,0.00016438,2]
[369472958,1751589040136,-460.0,0.00016438,2]
[369472960,1751589040145,-542.04,0.00016438,2]
[369472962,1751589040154,-585.41042702,0.00016438,2]
[369472964,1751589040164,-170.53934948,0.00016438,2]
[369472966,1751589040173,-461.92110379,0.00016438,2]
[369472968,1751589040183,-460.0,0.00016438,2]
[369472970,1751589040193,-504.82498089,0.00016438,2]
[369472972,1751589040203,-4157.69,0.00016438,2]
[369472974,1751589040212,-550.59,0.00016438,2]
[369472976,1751589040222,-460.0,0.00016438,2]
[369472978,1751589040231,-500.0,0.00016438,2]
[369472980,1751589040241,-460.8960949,0.00016438,2]
[369472982,1751589040250,-1619.61,0.00016438,2]
[369472984,1751589040259,-460.0,0.00016438,2]
[369472986,1751589040270,-460.0,0.00016438,2]
[369472988,1751589040279,-460.0,0.00016438,2]
[369472990,1751589040289,-460.0,0.00016438,2]
[369472992,1751589040298,-665.87,0.00016438,2]
[369472994,1751589040307,-460.0,0.00016438,2]
[369472996,1751589040317,-460.0,0.00016438,2]
[369472999,1751589040326,-514.12,0.00016438,2]
[369473001,1751589040336,-460.0,0.00016438,2]
[369473002,1751589040345,-460.0,0.00016438,2]
[369473005,1751589040355,-350.17417837,0.00016438,2]
[369473007,1751589040364,-460.0,0.00016438,2]
[369473008,1751589040373,-460.0,0.00016438,2]
[369473011,1751589040383,-500.0,0.00016438,2]
[369473013,1751589040392,-500.0,0.00016465,2]
[369473015,1751589040402,-151.0,0.00016465,2]
[369473017,1751589040411,-151.0,0.00016465,2]
[369473019,1751589040422,-500.0,0.00016465,2]
[369473020,1751589040432,-151.0,0.00016465,2]
[369473022,1751589040442,-151.0,0.00016465,2]
[369473024,1751589040451,-151.0,0.00016465,2]
[369473026,1751589040462,-500.0,0.00016465,2]
[369473028,1751589040473,-500.0,0.00016465,2]
[369473030,1751589040482,-151.0,0.00016465,2]
[369473033,1751589040493,-500.0,0.00016465,2]
[369473035,1751589040502,-151.0,0.00016465,2]
[369473037,1751589040512,-500.0,0.00016465,2]
[369473039,1751589040525,-500.0,0.00016465,2]
[369473040,1751589040535,-151.0,0.00016465,2]
[369473042,1751589040544,-254.80061498,0.00016465,2]
[369473044,1751589040554,-198.0,0.00016493,2]
[369473047,1751589040563,-500.0,0.00016493,2]
[369473049,1751589040573,-503.0856224,0.00016493,2]
[369473051,1751589040583,-500.0,0.00016493,2]
[369473053,1751589040592,-500.0,0.00016493,2]
[369473055,1751589040602,-198.0,0.00016493,2]
[369473057,1751589040611,-500.0,0.00016493,2]
[369473058,1751589040620,-500.0,0.00016493,2]
[369473059,1751589040630,-151.0,0.0001652,2]
[369473060,1751589040639,-500.0,0.0001652,2]
[369473061,1751589040648,-287.29486839,0.0001652,2]
[369473062,1751589040658,-500.0,0.0001652,2]
[369473063,1751589040667,-463.58157554,0.0001652,2]
[369473064,1751589040676,-500.0,0.00016548,2]
[369473065,1751589040686,-196.91395842,0.00016548,2]
[369473066,1751589040695,-500.0,0.00016575,2]
[369473067,1751589040705,-168.0,0.00016575,2]
[369473068,1751589040714,-396.0,0.00016602,2]
[369473069,1751589040723,-151.0,0.00016612,2]
[369473070,1751589040733,-151.0,0.00016612,2]
[369473072,1751589040742,-168.0,0.00016652,2]
[369473073,1751589040751,-1235.11012,0.0001666,2]
[369473074,1751589040761,-168.0,0.00016664,2]
[369473075,1751589040770,-168.0,0.00016703,2]
[369473077,1751589040780,-500.0,0.00016709,2]
[369473079,1751589040790,-500.0,0.00016709,2]
[369473081,1751589040799,-357.43855716,0.00016709,2]
[369473083,1751589040809,-500.0,0.00016709,2]
[369473085,1751589040818,-370.89978593,0.00016709,2]
[369473087,1751589040828,-500.0,0.00016709,2]
[369473090,1751589040837,-500.0,0.00016709,2]
[369473092,1751589040847,-500.0,0.00016709,2]
[369473094,1751589040856,-500.0,0.00016709,2]
[369473096,1751589040865,-500.0,0.00016709,2]
[369473098,1751589040874,-500.0,0.00016709,2]
[369473100,1751589040883,-500.0,0.00016709,2]
[369473102,1751589040892,-500.0,0.00016709,2]
[369473104,1751589040901,-559.1211438,0.00016709,2]
[369473106,1751589040910,-500.0,0.00016709,2]
[369473108,1751589040920,-500.0,0.00016709,2]
[369473110,1751589040929,-500.0,0.00016709,2]
[369473112,1751589040942,-500.0,0.00016709,2]
[369473114,1751589040950,-500.0,0.00016709,2]
[369473116,1751589040959,-500.0,0.00016709,2]
[369473118,1751589040969,-500.0,0.00016709,2]
[369473120,1751589040979,-500.0,0.00016709,2]
[369473122,1751589040988,-210949.6792053,0.0001671,2]
[369473124,1751589040997,-151.0,0.0001671,2]
[369473126,1751589041007,-262.830824,0.0001671,2]
[369473128,1751589041016,-151.0,0.0001671,2]
[369473130,1751589041026,-168.0,0.00016711,2]
[369473131,1751589041035,-151.0,0.00016712,2]
[369473133,1751589041044,-960.14,0.00016712,2]
[369473135,1751589041054,-1163.54,0.00016712,2]
[369473137,1751589041063,-460.0,0.00016712,2]
[369473139,1751589041072,-460.0,0.00016712,2]
[369473141,1751589041082,-465.58509091,0.00016712,2]
[369473143,1751589041091,-460.0,0.00016712,2]
[369473145,1751589041100,-151.0,0.00016712,2]
[369473147,1751589041109,-422.98057995,0.00016712,2]
[369473149,1751589041118,-460.0,0.00016712,2]
[369473151,1751589041127,-460.0,0.00016712,2]
[369473153,1751589041137,-545.05932215,0.00016712,2]
[369473155,1751589041146,-461.17896764,0.00016712,2]
[369473157,1751589041155,-460.0,0.00016712,2]
[369473160,1751589041164,-460.0,0.00016712,2]
[369473162,1751589041174,-460.0,0.00016712,2]
[369473164,1751589041184,-460.0,0.00016712,2]
[369473166,1751589041193,-460.0,0.00016712,2]
[369473168,1751589041202,-583.65,0.00016712,2]
[369473170,1751589041211,-460.0,0.00016712,2]
[369473172,1751589041220,-460.0,0.00016712,2]
[369473174,1751589041230,-460.0,0.00016712,2]
[369473176,1751589041239,-460.0,0.00016712,2]
[369473178,1751589041249,-482.58,0.00016712,2]
[369473180,1751589041258,-460.0,0.00016712,2]
[369473182,1751589041267,-460.0,0.00016712,2]
[369473184,1751589041276,-460.0,0.00016712,2]
[369473186,1751589041285,-460.0,0.00016712,2]
[369473188,1751589041294,-216.4,0.00016712,2]
[369473190,1751589041303,-460.0,0.00016712,2]
[369473192,1751589041313,-460.0,0.00016712,2]
[369473194,1751589041322,-460.0,0.00016712,2]
[369473196,1751589041331,-460.0,0.00016712,2]
[369473198,1751589041340,-460.0,0.00016712,2]
[369473200,1751589041349,-460.0,0.00016712,2]
[369473202,1751589041358,-460.0,0.00016712,2]
[369473204,1751589041367,-460.0,0.00016712,2]
[369473206,1751589041376,-460.0,0.00016712,2]
[369473208,1751589041387,-460.0,0.00016712,2]
[369473210,1751589041396,-460.0,0.00016712,2]
[369473212,1751589041405,-460.0,0.00016712,2]
[369473214,1751589041414,-392.2592204,0.00016712,2]
[369473216,1751589041424,-460.0,0.00016712,2]
[369473218,1751589041433,-460.0,0.00016712,2]
[369473220,1751589041443,-460.0,0.00016712,2]
[369473222,1751589041452,-465.98167006,0.00016712,2]
[369473224,1751589041463,-460.0,0.00016712,2]
[369473226,1751589041472,-519.77,0.00016712,2]
[369473228,1751589041481,-350.0,0.00016712,2]
[369473230,1751589041490,-460.0,0.00016712,2]
[369473232,1751589041500,-461.97802635,0.00016712,2]
[369473235,1751589041509,-460.0,0.00016712,2]
[369473237,1751589041518,-294.3,0.00016712,2]
[369473239,1751589041527,-460.0,0.00016712,2]
[369473241,1751589041537,-460.0,0.00016712,2]
[369473243,1751589041546,-460.0,0.00016712,2]
[369473245,1751589041556,-460.0,0.00016712,2]
[369473247,1751589041565,-560.78198924,0.00016712,2]
[369473249,1751589041574,-460.0,0.00016712,2]
[369473251,1751589041583,-460.0,0.00016712,2]
[369473253,1751589041592,-460.0,0.00016712,2]
[369473255,1751589041602,-451.76802592,0.00016712,2]
[369473257,1751589041611,-462.31770727,0.00016712,2]
[369473259,1751589041620,-460.0,0.00016712,2]
[369473261,1751589041630,-460.0,0.00016712,2]
[369473263,1751589041639,-460.0,0.00016712,2]
[369473265,1751589041648,-151.0,0.00016712,2]
[369473267,1751589041657,-151.0,0.00016712,2]
[369473269,1751589041666,-460.0,0.00016712,2]
[369473271,1751589041675,-460.0,0.00016712,2]
[369473273,1751589041684,-440.0,0.00016712,2]
[369473275,1751589041694,-460.0,0.00016712,2]
[369473277,1751589041703,-322.66289826,0.00016712,2]
[369473279,1751589041712,-460.0,0.00016712,2]
[369473281,1751589041721,-460.0,0.00016712,2]
[369473283,1751589041731,-458.181536,0.00016712,2]
[369473285,1751589041739,-460.0,0.00016712,2]
[369473287,1751589041749,-412.53466667,0.00016712,2]
[369473289,1751589041758,-458.181536,0.00016712,2]
[369473291,1751589041767,-460.0,0.00016712,2]
[369473293,1751589041776,-460.0,0.00016712,2]
[369473295,1751589041785,-460.0,0.00016712,2]
[369473297,1751589041794,-490.65,0.00016712,2]
[369473299,1751589041803,-460.0,0.00016712,2]
[369473301,1751589041812,-460.0,0.00016712,2]
[369473303,1751589041822,-638.832196,0.00016712,2]
[369473305,1751589041831,-460.0,0.00016712,2]
[369473307,1751589041840,-638.832196,0.00016712,2]
[369473309,1751589041849,-253.34835268,0.00016712,2]
[369473311,1751589041858,-460.0,0.00016712,2]
[369473313,1751589041867,-460.0,0.00016712,2]
[369473315,1751589041877,-460.0,0.00016712,2]
[369473317,1751589041886,-460.0,0.00016712,2]
[369473319,1751589041896,-151.0,0.00016712,2]
[369473321,1751589041905,-151.0,0.00016712,2]
[369473323,1751589041914,-151.0,0.00016712,2]
[369473325,1751589041924,-500.80343711,0.00016712,2]
[369473327,1751589041937,-460.0,0.00016712,2]
[369473329,1751589041947,-460.0,0.00016712,2]
[369473331,1751589041956,-460.0,0.00016712,2]
[369473333,1751589041965,-460.0,0.00016712,2]
[369473335,1751589041975,-460.0,0.00016712,2]
[369473337,1751589041984,-460.0,0.00016712,2]
[369473339,1751589041993,-460.0,0.00016712,2]
[369473341,1751589042002,-460.0,0.00016712,2]
[369473343,1751589042011,-460.0,0.00016712,2]
[369473345,1751589042021,-460.0,0.00016712,2]
[369473347,1751589042030,-460.0,0.00016712,2]
[369473349,1751589042039,-460.0,0.00016712,2]
[369473351,1751589042049,-460.0,0.00016712,2]
[369473353,1751589042058,-460.0,0.00016712,2]
[369473355,1751589042067,-460.0,0.00016712,2]
[369473357,1751589042077,-170.46170455,0.00016712,2]
[369473359,1751589042086,-460.0,0.00016712,2]
[369473361,1751589042096,-460.0,0.00016712,2]
[369473363,1751589042105,-578.08,0.00016712,2]
[369473365,1751589042115,-460.0,0.00016712,2]
[369473367,1751589042124,-462.32889368,0.00016712,2]
[369473369,1751589042133,-343.27474376,0.00016712,2]
[369473371,1751589042142,-460.0,0.00016712,2]
[369473373,1751589042151,-460.0,0.00016712,2]
[369473376,1751589042161,-460.0,0.00016712,2]
[369473377,1751589042170,-460.0,0.00016712,2]
[369473380,1751589042181,-460.0,0.00016712,2]
[369473393,1751589042301,-1072.33,0.00016712,2]
[369473395,1751589042311,-460.0,0.00016712,2]
[369473397,1751589042321,-460.0,0.00016712,2]
[369473399,1751589042331,-460.0,0.00016712,2]
[369473401,1751589042340,-500.0,0.00016712,2]
[369473403,1751589042350,-500.0,0.00016712,2]
[369473406,1751589042361,-1214.0,0.00016712,2]
[369473407,1751589042371,-460.0,0.00016712,2]
[369473409,1751589042381,-748.19,0.00016712,2]
[369473411,1751589042390,-460.0,0.00016712,2]
[369473413,1751589042400,-460.0,0.00016712,2]
[369473415,1751589042410,-410.0,0.00016712,2]
[369473417,1751589042419,-1815.12,0.00016712,2]
[369473419,1751589042429,-572.59,0.00016712,2]
[369473421,1751589042439,-460.0,0.00016712,2]
[369473423,1751589042449,-460.0,0.00016712,2]
[369473425,1751589042458,-460.0,0.00016712,2]
[369473427,1751589042468,-460.0,0.00016712,2]
[369473429,1751589042478,-460.0,0.00016712,2]
[369473432,1751589042487,-460.0,0.00016712,2]
[369473435,1751589042498,-485.26,0.00016712,2]
[369473437,1751589042508,-460.0,0.00016712,2]
[369473440,1751589042518,-460.0,0.00016712,2]
[369473441,1751589042528,-460.0,0.00016712,2]
[369473443,1751589042537,-481.89417739,0.00016712,2]
[369473445,1751589042547,-460.0,0.00016712,2]
[369473447,1751589042556,-608.5,0.00016712,2]
[369473449,1751589042565,-460.0,0.00016712,2]
[369473452,1751589042575,-460.0,0.00016712,2]
[369473453,1751589042585,-460.0,0.00016712,2]
[369473455,1751589042594,-460.0,0.00016712,2]
[369473457,1751589042604,-460.0,0.00016712,2]
[369473459,1751589042613,-460.0,0.00016712,2]
[369473461,1751589042623,-2852.6,0.00016712,2]
[369473465,1751589042633,-1291.16,0.00016712,2]
[369473467,1751589042642,-460.0,0.00016712,2]
[369473469,1751589042652,-460.0,0.00016712,2]
[369473471,1751589042662,-460.0,0.00016712,2]
[369473473,1751589042671,-1867.03,0.00016712,2]
[369473475,1751589042681,-617.75,0.00016712,2]
[369473477,1751589042690,-462.08451736,0.00016712,2]
[369473479,1751589042699,-254.26203425,0.00016712,2]
[369473482,1751589042709,-460.0,0.00016712,2]
[369473483,1751589042719,-460.0,0.00016712,2]
[369473485,1751589042728,-460.0,0.00016712,2]
[369473487,1751589042737,-1225.05,0.00016712,2]
[369473490,1751589042747,-442.04347894,0.00016712,2]
[369473491,1751589042758,-460.0,0.00016712,2]
[369473494,1751589042768,-460.0,0.00016712,2]
[369473496,1751589042778,-3077.43,0.00016712,2]
[369473498,1751589042787,-472.73,0.00016712,2]
[369473499,1751589042797,-892.9,0.00016712,2]
[369473501,1751589042806,-460.0,0.00016712,2]
[369473503,1751589042815,-316.8719568,0.00016712,2]
[369473505,1751589042826,-4143.69,0.00016712,2]
[369473508,1751589042837,-460.0,0.00016712,2]
[369473509,1751589042848,-460.0,0.00016712,2]
[369473511,1751589042857,-460.0,0.00016712,2]
[369473514,1751589042867,-460.0,0.00016712,2]
[369473515,1751589042877,-460.0,0.00016712,2]
[369473517,1751589042886,-926.24,0.00016712,2]
[369473520,1751589042895,-460.0,0.00016712,2]
[369473521,1751589042905,-460.0,0.00016712,2]
[369473524,1751589042915,-460.0,0.00016712,2]
[369473525,1751589042926,-460.0,0.00016712,2]
[369473528,1751589042940,-150.67399097,0.00016712,2]
[369473530,1751589042949,-460.0,0.00016712,2]
[369473532,1751589042958,-413.27320839,0.00016712,2]
[369473534,1751589042967,-460.0,0.00016712,2]
[369473536,1751589042978,-460.0,0.00016712,2]
[369473538,1751589042987,-460.0,0.00016712,2]
[369473540,1751589042997,-460.0,0.00016712,2]
[369473542,1751589043007,-526.9,0.00016712,2]
[369473544,1751589043016,-460.0,0.00016712,2]
[369473546,1751589043026,-531.64,0.00016712,2]
[369473547,1751589043035,-460.0,0.00016712,2]
[369473550,1751589043045,-460.0,0.00016712,2]
[369473552,1751589043054,-460.0,0.00016712,2]
[369473554,1751589043063,-460.0,0.00016712,2]
[369473556,1751589043072,-460.0,0.00016712,2]
[369473558,1751589043082,-460.0,0.00016712,2]
[369473560,1751589043091,-847.02,0.00016712,2]
[369473561,1751589043101,-460.0,0.00016712,2]
[369473563,1751589043110,-460.0,0.00016712,2]
[369473565,1751589043119,-460.0,0.00016712,2]
[369473567,1751589043128,-460.0,0.00016712,2]
[369473569,1751589043137,-460.0,0.00016712,2]
[369473571,1751589043147,-460.0,0.00016712,2]
[369473573,1751589043156,-460.0,0.00016712,2]
[369473576,1751589043165,-2562.26,0.00016712,2]
[369473577,1751589043175,-460.0,0.00016712,2]
[369473580,1751589043184,-460.0,0.00016712,2]
[369473581,1751589043193,-460.0,0.00016712,2]
[369473584,1751589043203,-460.0,0.00016712,2]
[369473585,1751589043211,-2612.97,0.00016712,2]
[369473587,1751589043221,-460.0,0.00016712,2]
[369473589,1751589043230,-289.81466949,0.00016712,2]
[369473591,1751589043239,-563.11,0.00016712,2]
[369473593,1751589043249,-594.47,0.00016712,2]
[369473595,1751589043258,-460.0,0.00016712,2]
[369473598,1751589043268,-686.12,0.00016712,2]
[369473599,1751589043278,-460.0,0.00016712,2]
[369473602,1751589043287,-460.0,0.00016712,2]
[369473603,1751589043296,-460.0,0.00016712,2]
[369473606,1751589043306,-460.0,0.00016712,2]
[369473607,1751589043316,-2691.98,0.00016712,2]
[369473610,1751589043325,-460.0,0.00016712,2]
[369473611,1751589043335,-465.47019445,0.00016712,2]
[369473614,1751589043344,-460.0,0.00016712,2]
[369473615,1751589043354,-2039.02,0.00016712,2]
[369473617,1751589043363,-280.1787773,0.00016712,2]
[369473619,1751589043372,-460.0,0.00016712,2]
[369473621,1751589043381,-1180.53,0.00016712,2]
[369473623,1751589043390,-577.85,0.00016712,2]
[369473625,1751589043400,-460.0,0.00016712,2]
[369473627,1751589043409,-653.97,0.00016712,2]
[369473629,1751589043418,-460.0,0.00016712,2]
[369473631,1751589043428,-435.65884107,0.00016712,2]
[369473633,1751589043437,-552.73,0.00016712,2]
[369473635,1751589043447,-460.0,0.00016712,2]
[369473637,1751589043456,-460.0,0.00016712,2]
[369473639,1751589043466,-460.0,0.00016712,2]
[369473641,1751589043477,-698.96,0.00016712,2]
[369473643,1751589043487,-1015.65,0.00016712,2]
[369473645,1751589043496,-460.0,0.00016712,2]
[369473647,1751589043505,-460.0,0.00016712,2]
[369473649,1751589043514,-460.0,0.00016712,2]
[369473651,1751589043523,-460.0,0.00016712,2]
[369473653,1751589043537,-460.0,0.00016712,2]
[369473655,1751589043547,-2259.47,0.00016712,2]
[369473657,1751589043556,-460.0,0.00016712,2]
[369473659,1751589043566,-460.0,0.00016712,2]
[369473661,1751589043575,-269.45721925,0.00016712,2]
[369473662,1751589043585,-460.0,0.00016712,2]
[369473663,1751589043594,-460.0,0.00016712,2]
[369473664,1751589043604,-471.20316169,0.00016712,2]
[369473665,1751589043614,-460.0,0.00016712,2]
[369473666,1751589043623,-460.0,0.00016712,2]
[369473667,1751589043632,-460.0,0.00016712,2]
[369473668,1751589043642,-460.0,0.00016712,2]
[369473669,1751589043651,-460.0,0.00016712,2]
[369473670,1751589043661,-953.35,0.00016712,2]
[369473671,1751589043670,-460.0,0.00016712,2]
[369473672,1751589043679,-460.0,0.00016712,2]
[369473673,1751589043688,-460.0,0.00016712,2]
[369473674,1751589043698,-460.0,0.00016712,2]
[369473675,1751589043707,-560.78,0.00016712,2]
[369473676,1751589043718,-460.0,0.00016712,2]
[369473677,1751589043727,-1670.95,0.00016712,2]
[369473678,1751589043737,-460.0,0.00016712,2]
[369473679,1751589043746,-460.0,0.00016712,2]
[369473680,1751589043756,-464.23988757,0.00016712,2]
[369473681,1751589043766,-460.0,0.00016712,2]
[369473682,1751589043775,-734.67,0.00016712,2]
[369473683,1751589043788,-460.0,0.00016712,2]
[369473684,1751589043797,-460.0,0.00016712,2]
[369473685,1751589043807,-460.0,0.00016712,2]
[369473686,1751589043816,-460.0,0.00016712,2]
[369473687,1751589043825,-542.04,0.00016712,2]
[369473688,1751589043834,-460.0,0.00016712,2]
[369473689,1751589043843,-4157.69,0.00016712,2]
[369473690,1751589043852,-550.59,0.00016712,2]
[369473691,1751589043862,-500.0,0.00016712,2]
[369473692,1751589043871,-460.0,0.00016712,2]
[369473693,1751589043879,-1619.61,0.00016712,2]
[369473694,1751589043889,-460.0,0.00016712,2]
[369473695,1751589043898,-460.0,0.00016712,2]
[369473696,1751589043908,-460.0,0.00016712,2]
[369473697,1751589043917,-460.0,0.00016712,2]
[369473698,1751589043926,-665.87,0.00016712,2]
[369473699,1751589043941,-460.0,0.00016712,2]
[369473700,1751589043950,-460.0,0.00016712,2]
[369473701,1751589043959,-460.0,0.00016712,2]
[369473702,1751589043969,-460.0,0.00016712,2]
[369473704,1751589043978,-460.0,0.00016712,2]
[369473706,1751589043987,-465.82844052,0.00016712,2]
[369473708,1751589043996,-500.0,0.00016712,2]
[369473710,1751589044005,-168.0,0.00016716,2]
[369473712,1751589044014,-168.0,0.00016724,2]
[369473713,1751589044024,-168.0,0.00016755,2]
[369473715,1751589044035,-500.0,0.00016773,2]
[369473717,1751589044044,-500.0,0.00016773,2]
[369473720,1751589044053,-500.0,0.00016773,2]
[369473721,1751589044063,-500.0,0.00016773,2]
[369473723,1751589044072,-500.0,0.00016773,2]
[369473725,1751589044082,-500.0,0.00016773,2]
[369473727,1751589044091,-500.0,0.00016773,2]
[369473729,1751589044101,-500.0,0.00016773,2]
[369473731,1751589044110,-486.3677541,0.00016773,2]
[369473733,1751589044119,-500.0,0.00016773,2]
[369473735,1751589044128,-500.0,0.00016773,2]
[369473738,1751589044138,-500.0,0.00016773,2]
[369473739,1751589044147,-500.0,0.00016773,2]
[369473741,1751589044157,-500.0,0.00016773,2]
[369473743,1751589044166,-500.0,0.00016773,2]
[369473746,1751589044176,-500.0,0.00016773,2]
[369473748,1751589044186,-500.0,0.00016773,2]
[369473749,1751589044195,-500.0,0.00016773,2]
[369473751,1751589044204,-500.0,0.00016773,2]
[369473753,1751589044214,-500.72984294,0.00016773,2]
[369473756,1751589044224,-500.0,0.00016773,2]
[369473758,1751589044233,-500.0,0.00016773,2]
[369473759,1751589044242,-500.0,0.00016773,2]
[369473761,1751589044252,-500.0,0.00016773,2]
[369473764,1751589044261,-500.0,0.00016773,2]
[369473777,1751589044271,-500.0,0.00016773,2]
[369473779,1751589044395,-500.0,0.00016773,2]
[369473781,1751589044404,-500.4688799,0.00016773,2]
[369473783,1751589044414,-225.42917442,0.00016773,2]
[369473785,1751589044424,-500.59365294,0.00016773,2]
[369473787,1751589044433,-500.0,0.00016773,2]
[369473789,1751589044443,-500.0,0.00016773,2]
[369473791,1751589044452,-500.0,0.00016773,2]
[369473793,1751589044461,-500.0,0.00016773,2]
[369473795,1751589044470,-413.02743098,0.00016773,2]
[369473797,1751589044480,-500.30211737,0.00016773,2]
[369473799,1751589044489,-500.0,0.00016773,2]
[369473801,1751589044499,-153.0,0.000168,2]
[369473803,1751589044508,-153.0,0.000168,2]
[369473805,1751589044517,-153.0,0.000168,2]
[369473807,1751589044529,-168.0,0.00016805,2]
[369473809,1751589044539,-168.0,0.00016839,2]
[369473811,1751589044548,-168.0,0.00016856,2]
[369473813,1751589044558,-800.0,0.00016888,2]
[369473815,1751589044567,-800.0,0.00016893,2]